bitfinex/quotes_ETHUSD_20240811
["timestamp","ask_amount","ask_price","bid_price","bid_amount"]
[1723403297932,0.03575197,2636.8,2636.3,2.65519]
[1723403298272,0.03575197,2636.8,2636.4,2.65506]
[1723403298731,0.03575197,2636.8,2636.3,2.65517]
[1723403298933,0.03575197,2636.8,2636.3,3.24562103]
[1723403299254,2.65484,2636.7,2636.2,0.59397029]
[1723403299470,2.65484,2636.7,2636.2,3.24930029]
[1723403299653,0.03536188,2636.6,2636.2,3.24930029]
[1723403300234,0.03536188,2636.6,2636.2,0.59397029]
[1723403300488,2.3062,2636.5,2636.2,0.59397029]
[1723403300833,2.34146442,2636.5,2636.2,0.59397029]
[1723403301030,0.03526442,2636.5,2636.3,2.65518]
[1723403301265,0.03526442,2636.5,2636.4,2.65513]
[1723403301570,0.03512935,2636.5,2636.4,2.65513]
[1723403301782,2.3062,2636.8,2636.4,2.65513]
[1723403301982,0.03524336,2636.5,2636.4,2.65513]
[1723403302290,0.03524336,2636.5,2636.3,2.65518]
[1723403302515,2.3062,2636.8,2636.4,2.65513]
[1723403302647,0.03516103,2636.4,2636.2,0.59397029]
[1723403303101,2.65488,2636.7,2636.2,0.59397029]
[1723403303102,0.03508771,2636.3,2636.2,0.59397029]
[1723403303254,2.65488,2636.7,2636.2,0.59397029]
[1723403303592,0.03533471,2636.6,2636.2,0.59397029]
[1723403303957,2.69033471,2636.6,2636.2,0.59397029]
[1723403304818,2.3062,2636.5,2636.2,0.59397029]
[1723403305107,2.69034005,2636.4,2636.2,0.59397029]
[1723403305395,7.61666,2636.3,2636.2,0.59397029]
[1723403305549,2.65552,2636.1,2635.7,0.1267435]
[1723403305947,0.03484066,2636.0,2635.7,0.1267435]
[1723403306184,4.96184,2635.9,2635.7,0.1267435]
[1723403306391,2.34076572,2635.9,2635.7,0.1267435]
[1723403308888,0.03456572,2635.9,2635.7,0.1267435]
[1723403309091,2.3851,2636.1,2635.7,0.1267435]
[1723403309387,0.03463083,2636.0,2635.7,0.1267435]
[1723403309595,2.3851,2635.9,2635.7,0.1267435]
[1723403309800,2.65574,2635.8,2635.7,0.1267435]
[1723403309960,0.03457412,2635.8,2635.7,0.1267435]
[1723403311205,2.3851,2635.9,2635.7,0.1267435]
[1723403311502,0.03650871,2635.8,2635.7,0.1267435]
[1723403312689,3.49996358,2635.8,2635.7,0.1267435]
[1723403313055,3.84422358,2635.8,2635.7,0.1267435]
[1723403313197,3.80771487,2635.8,2635.7,0.1267435]
[1723403313493,3.03647007,2635.8,2635.7,0.1267435]
[1723403314061,0.03647007,2635.8,2635.7,0.1267435]
[1723403315421,10.77355007,2635.8,2635.7,0.1267435]
[1723403315698,13.39282,2635.8,2635.7,0.1267435]
[1723403315875,10.73708,2635.8,2635.7,0.1267435]
[1723403316084,12.076342,2635.8,2635.7,0.1267435]
[1723403320884,9.420602,2635.8,2635.7,0.1267435]
[1723403321288,12.076342,2635.8,2635.7,0.1267435]
[1723403321820,9.420602,2635.8,2635.7,0.1267435]
[1723403322031,27.14,2636.4,2635.7,0.1267435]
[1723403322032,2.4256,2636.8,2635.7,2.6243435]
[1723403322239,2.4256,2637.1,2636.1,2.65541]
[1723403322521,2.65456,2637.0,2636.4,2.65506]
[1723403323795,5.30917,2637.0,2636.4,2.65506]
[1723403323998,2.65456,2637.0,2636.4,2.65506]
[1723403324201,2.6553,2636.3,2635.7,0.1267435]
[1723403324406,2.6553,2636.3,2635.7,2.7825735]
[1723403324735,2.4256,2636.4,2635.8,2.65571]
[1723403324883,2.4256,2636.4,2635.8,5.31138]
[1723403325088,2.4256,2636.4,2635.8,2.65567]
[1723403325326,2.4256,2636.4,2635.8,3.19950035]
[1723403325827,2.65535,2636.2,2635.8,0.54383035]
[1723403326131,2.65532,2636.3,2635.8,0.54383035]
[1723403326283,2.65539,2636.2,2635.8,0.54383035]
[1723403326489,2.65553,2636.0,2635.8,0.54383035]
[1723403326691,2.65549,2636.1,2635.7,0.1267435]
[1723403327003,2.66816,2636.4,2635.7,0.1267435]
[1723403327004,2.6557,2635.9,2635.7,0.1267435]
[1723403327204,2.65574,2635.8,2635.7,0.1267435]
[1723403327602,5.31148,2635.8,2635.7,0.1267435]
[1723403328609,8.729748,2635.8,2635.7,0.1267435]
[1723403328920,17.249288,2635.8,2635.7,0.1267435]
[1723403331544,14.593548,2635.8,2635.7,0.1267435]
[1723403332172,17.249288,2635.8,2635.7,0.1267435]
[1723403332540,14.593548,2635.8,2635.7,0.1267435]
[1723403332739,17.249288,2635.8,2635.7,0.1267435]
[1723403332943,17.249288,2635.8,2635.7,3.5e-06]
[1723403333972,18.56257773,2635.8,2635.7,3.5e-06]
[1723403334240,38.53257745,2635.8,2635.7,3.5e-06]
[1723403334548,2.65715,2634.4,2633.7,2.3223]
[1723403335078,7.27,2634.6,2634.1,2.65738]
[1723403335279,7.27,2634.6,2634.1,2.65739]
[1723403335885,7.27,2634.6,2634.0,2.65748]
[1723403335939,7.27,2634.6,2633.9,2.3223]
[1723403336142,2.65727,2634.3,2633.6,2.6579]
[1723403336373,2.65761,2634.0,2633.5,2.3223]
[1723403337202,2.65768,2633.9,2633.5,2.3223]
[1723403337642,2.65768,2633.9,2633.4,5.05050505]
[1723403337845,2.65795,2633.7,2633.4,5.05050505]
[1723403338230,5.3161,2633.5,2633.4,5.05050505]
[1723403338517,2.65805,2633.5,2633.4,5.05050505]
[1723403338697,2.65777,2633.8,2633.4,5.05050505]
[1723403339211,3.0,2634.0,2633.4,5.05050505]
[1723403339459,2.65781,2633.8,2633.4,5.05050505]
[1723403340319,5.65729,2634.3,2633.4,5.05050505]
[1723403340320,2.65738,2634.2,2633.4,6.05361955]
[1723403340471,3.0,2634.1,2633.4,6.05361955]
[1723403340670,2.65765,2633.9,2633.4,8.71170955]
[1723403340904,2.65765,2633.9,2633.4,5.05050505]
[1723403341131,2.65765,2633.9,2633.5,2.3223]
[1723403341277,2.65751,2634.1,2633.5,2.3223]
[1723403341469,2.65751,2634.1,2633.5,4.98035]
[1723403341670,2.65722,2634.4,2633.5,2.3223]
[1723403341876,2.65737,2634.2,2633.6,0.73728051]
[1723403342113,2.65737,2634.2,2633.7,2.65777]
[1723403342524,3.0,2634.3,2633.5,4.98029]
[1723403342672,2.65757,2634.0,2633.5,2.3223]
[1723403342876,2.4181,2634.3,2633.4,5.05050505]
[1723403342877,0.265757,2633.9,2633.4,5.05050505]
[1723403343105,2.6577,2633.9,2633.4,5.05050505]
[1723403343416,2.65776,2633.8,2633.4,5.05050505]
[1723403343916,2.65803,2633.6,2633.4,5.05050505]
[1723403344445,2.65776,2633.8,2633.4,5.05050505]
[1723403344575,2.6576,2634.0,2633.4,5.05050505]
[1723403344777,2.65784,2633.8,2633.4,5.05050505]
[1723403345105,2.65757,2634.0,2633.5,2.3223]
[1723403345275,2.65769,2633.9,2633.5,2.3223]
[1723403345477,2.65805,2633.5,2633.4,5.05050505]
[1723403345744,5.823715,2633.5,2633.4,5.05050505]
[1723403347032,3.165665,2633.5,2633.4,5.05050505]
[1723403348738,5.823715,2633.5,2633.4,5.05050505]
[1723403349414,3.165665,2633.5,2633.4,5.05050505]
[1723403349791,5.823715,2633.5,2633.4,5.05050505]
[1723403351094,8.823715,2633.5,2633.4,5.05050505]
[1723403351909,9.373715,2633.5,2633.4,5.05050505]
[1723403352803,8.823715,2633.5,2633.4,5.05050505]
[1723403353189,5.06084,2633.9,2633.4,5.05050505]
[1723403353529,2.65776,2633.8,2633.4,5.05050505]
[1723403353739,2.65791,2633.7,2633.4,5.05050505]
[1723403353887,2.65802,2633.6,2633.4,5.05050505]
[1723403354217,2.65772,2633.9,2633.4,5.05050505]
[1723403354592,2.65775,2633.8,2633.4,5.05050505]
[1723403356129,2.65772,2633.9,2633.4,5.05050505]
[1723403356431,5.31545,2633.9,2633.4,5.05050505]
[1723403356632,2.65755,2634.0,2633.4,5.05050505]
[1723403357149,2.65755,2634.0,2633.5,2.3551]
[1723403357302,2.65771,2633.9,2633.5,2.3551]
[1723403358300,2.65742,2634.2,2633.5,2.3551]
[1723403358496,2.6579,2633.7,2633.5,2.3551]
[1723403359315,5.31542,2633.9,2633.5,2.3551]
[1723403359521,2.65775,2633.8,2633.5,2.3551]
[1723403360349,2.4031,2634.0,2633.4,5.05050505]
[1723403360534,10.37725,2633.5,2633.4,5.05050505]
[1723403360919,10.92725,2633.5,2633.4,5.05050505]
[1723403361104,13.92725,2633.5,2633.4,5.05050505]
[1723403362400,16.5853,2633.5,2633.4,5.05050505]
[1723403362601,17.3003218,2633.5,2633.4,5.05050505]
[1723403363429,17.3003218,2633.5,2633.4,1.25312505]
[1723403364099,9.0311218,2633.5,2633.4,1.25312505]
[1723403366618,1.96243797,2635.5,2633.5,2.3078]
[1723403366818,3.993,2636.3,2633.4,1.25312505]
[1723403366819,2.65577,2635.8,2634.6,2.65685]
[1723403367027,2.65622,2635.4,2634.5,2.3078]
[1723403367234,2.65624,2635.3,2634.5,4.96478]
[1723403367398,2.921864,2635.3,2634.5,4.96478]
[1723403367599,2.921864,2635.3,2634.5,4.96481]
[1723403367816,2.65654,2635.0,2634.5,2.3078]
[1723403368214,2.65638,2635.2,2634.5,2.3078]
[1723403368449,2.65645,2635.1,2634.5,2.3078]
[1723403368652,2.65664,2634.9,2634.5,2.3078]
[1723403369022,2.65678,2634.8,2634.5,2.3078]
[1723403369354,2.65693,2634.7,2634.5,2.3078]
[1723403370539,5.31338,2634.9,2634.5,2.3078]
[1723403370761,0.531338,2634.8,2634.5,2.3078]
[1723403370968,2.65691,2634.7,2634.1,2.3078]
[1723403371334,2.65651,2635.1,2634.2,2.38372079]
[1723403371577,2.65654,2635.0,2634.3,2.65715]
[1723403371737,2.65654,2635.0,2634.4,2.65713]
[1723403372074,2.65672,2634.9,2634.3,2.65723]
[1723403372275,2.65713,2634.5,2633.8,2.3151]
[1723403372440,3.0,2635.3,2633.5,3.629]
[1723403372441,2.65751,2634.1,2633.5,2.3151]
[1723403372776,2.65751,2634.1,2633.5,4.97312]
[1723403372943,2.65755,2634.0,2633.5,3.2035485]
[1723403373672,10.27,2634.7,2633.1,3.629]
[1723403373673,2.6577,2633.9,2633.1,2.65844]
[1723403373967,2.65792,2633.7,2633.1,2.3151]
[1723403374766,2.65805,2633.5,2633.0,0.1267435]
[1723403374934,3.189652,2633.5,2633.0,0.1267435]
[1723403375230,2.65805,2633.5,2633.0,0.1267435]
[1723403375430,5.3161,2633.5,2633.0,0.1267435]
[1723403376195,13.96325,2633.5,2633.4,0.70488284]
[1723403376481,13.96325,2633.5,2633.4,0.19580079]
[1723403378348,11.3052,2633.5,2633.4,0.19580079]
[1723403378660,9.44662,2633.5,2633.4,0.19580079]
[1723403379081,2.65788,2633.7,2633.4,0.19580079]
[1723403379794,5.31581,2633.7,2633.4,0.19580079]
[1723403379947,2.65799,2633.6,2633.4,0.19580079]
[1723403380566,2.65788,2633.7,2633.4,0.19580079]
[1723403380766,5.65768,2633.9,2633.4,0.19580079]
[1723403380767,3.0,2633.9,2633.4,0.19580079]
[1723403381082,2.65794,2633.7,2633.4,0.19580079]
[1723403381269,0.3,2633.8,2633.4,0.19580079]
[1723403381270,3.0,2633.8,2633.4,0.19580079]
[1723403381487,3.0,2633.8,2632.7,2.6588]
[1723403381488,7.75702,2632.6,2632.5,0.38945106]
[1723403381648,0.1,2633.4,2632.5,0.38945106]
[1723403381649,2.65884,2632.8,2632.5,0.38945106]
[1723403381846,2.65826,2633.3,2632.5,0.38945106]
[1723403382069,2.65828,2633.3,2632.6,0.27045511]
[1723403382259,2.65816,2633.4,2632.6,0.27045511]
[1723403382581,2.65803,2633.6,2632.8,2.65869]
[1723403382750,2.65803,2633.6,2632.8,0.55880851]
[1723403383079,2.65797,2633.6,2632.8,0.55880851]
[1723403383251,2.65833,2633.3,2632.8,0.55880851]
[1723403383448,2.65797,2633.6,2632.6,0.27045511]
[1723403383652,2.65834,2633.3,2632.6,2.65895]
[1723403383847,2.65817,2633.4,2632.5,0.38945106]
[1723403383848,2.6582,2633.4,2632.5,0.38945106]
[1723403384053,2.65843,2633.2,2632.5,0.38945106]
[1723403384388,2.65843,2633.2,2632.5,0.92581417]
[1723403384389,2.65848,2633.1,2632.5,0.92581417]
[1723403384554,2.65852,2633.1,2632.5,0.92581417]
[1723403384761,2.65873,2632.9,2632.5,0.38945106]
[1723403385787,2.65894,2632.7,2632.5,0.38945106]
[1723403385988,5.31792,2632.6,2632.5,0.38945106]
[1723403386188,2.65864,2633.0,2632.5,0.38945106]
[1723403386189,2.65879,2632.8,2632.5,0.38945106]
[1723403386495,2.65861,2633.0,2632.5,0.38945106]
[1723403386656,2.65839,2633.2,2632.6,2.4586]
[1723403386858,2.65847,2633.1,2632.6,2.4586]
[1723403387097,2.65856,2633.0,2632.6,2.4586]
[1723403387865,2.65839,2633.2,2632.6,5.11749]
[1723403388073,2.65852,2633.1,2632.6,3.27520211]
[1723403388406,2.65852,2633.1,2632.6,2.4586]
[1723403388713,2.65859,2633.0,2632.6,2.4586]
[1723403389001,2.65878,2632.8,2632.6,2.4586]
[1723403389764,2.65859,2633.0,2632.6,2.4586]
[1723403390187,2.65877,2632.8,2632.6,2.4586]
[1723403390559,2.65877,2632.8,2632.5,0.38945106]
[1723403390767,5.31792,2632.6,2632.5,0.38945106]
[1723403391815,2.65896,2632.6,2632.5,0.38945106]
[1723403391997,2.65865,2633.0,2632.5,0.38945106]
[1723403392198,5.65841,2633.2,2632.5,0.38945106]
[1723403392373,2.65852,2633.1,2632.5,0.38945106]
[1723403392776,2.65856,2633.0,2632.5,0.38945106]
[1723403392995,2.65852,2633.1,2632.5,0.38945106]
[1723403393201,5.65831,2633.3,2632.7,2.4484]
[1723403393419,2.65831,2633.3,2632.7,2.4484]
[1723403393705,2.65867,2632.9,2632.7,2.4484]
[1723403394776,5.31742,2632.9,2632.7,2.4484]
[1723403394983,2.65867,2632.9,2632.5,0.38945106]
[1723403395219,2.6583,2633.3,2632.5,0.38945106]
[1723403395220,2.65881,2632.8,2632.5,0.38945106]
[1723403395381,2.65891,2632.7,2632.5,0.38945106]
[1723403395710,5.31786,2632.7,2632.5,0.38945106]
[1723403395883,2.65891,2632.7,2632.5,0.38945106]
[1723403396085,5.31785,2632.7,2632.5,0.38945106]
[1723403396284,2.65891,2632.7,2632.5,0.38945106]
[1723403396604,2.4515,2633.3,2632.5,0.38945106]
[1723403396605,5.31792,2632.6,2632.5,0.38945106]
[1723403397172,2.65888,2632.7,2632.5,0.38945106]
[1723403397367,2.6588,2632.8,2632.5,0.38945106]
[1723403399010,2.6586,2633.0,2632.5,0.38945106]
[1723403399168,9.92841,2633.2,2632.6,2.4484]
[1723403399448,7.27,2633.2,2632.8,2.65876]
[1723403399871,17.59644,2633.4,2632.8,5.31746]
[1723403399872,2.6582,2633.4,2632.8,5.31746]
[1723403400081,7.27,2633.7,2633.0,2.65849]
[1723403400270,7.27,2633.7,2633.0,3.17680466]
[1723403400511,7.27,2633.7,2632.9,2.4484]
[1723403400707,2.65853,2633.1,2632.9,2.4484]
[1723403401126,2.65856,2633.0,2632.9,2.4484]
[1723403401333,2.65868,2632.9,2632.6,5.4484]
[1723403401613,2.65843,2633.2,2632.6,2.4484]
[1723403401765,2.6585,2633.1,2632.6,2.4484]
[1723403401971,2.65858,2633.0,2632.6,2.4484]
[1723403402214,7.27,2634.2,2632.6,2.4484]
[1723403402421,16.70400435,2634.6,2632.6,2.4484]
[1723403402422,2.65706,2634.5,2633.1,2.4484]
[1723403402584,2.65804,2633.6,2633.1,2.4484]
[1723403402980,2.65816,2633.4,2633.1,2.4484]
[1723403403189,2.65802,2633.6,2633.1,2.4484]
[1723403403603,2.65802,2633.6,2633.1,2.96668437]
[1723403404096,5.31561,2633.8,2633.1,5.62507437]
[1723403404305,2.65779,2633.8,2633.2,2.73424907]
[1723403404608,2.65766,2633.9,2633.3,5.39237384]
[1723403404806,2.6575,2634.1,2633.5,2.65803]
[1723403405012,2.65741,2634.2,2633.4,2.4484]
[1723403405211,2.4515,2634.6,2633.4,2.4484]
[1723403405517,2.65754,2634.1,2633.4,2.4484]
[1723403405684,2.65766,2633.9,2633.4,3.524896]
[1723403406670,2.65781,2633.8,2633.4,3.524896]
[1723403408032,2.65791,2633.7,2633.4,3.524896]
[1723403408331,2.65772,2633.9,2633.4,2.4484]
[1723403408829,2.65761,2634.0,2633.4,2.4484]
[1723403408830,2.65777,2633.8,2633.4,2.4484]
[1723403408998,2.65761,2634.0,2633.4,2.4484]
[1723403409190,2.65761,2634.0,2633.4,3.524893]
[1723403409390,2.65761,2634.0,2633.4,6.183033]
[1723403409691,2.65761,2634.0,2633.4,6.182983]
[1723403410891,2.65761,2634.0,2633.4,8.841083]
[1723403411381,2.65761,2634.0,2633.4,6.182983]
[1723403411585,5.31523,2634.0,2633.4,6.182983]
[1723403412011,2.65797,2633.6,2633.4,2.4484]
[1723403412223,7.27,2634.3,2633.4,2.4484]
[1723403412224,2.65794,2633.7,2633.4,2.4484]
[1723403412528,9.92728,2634.3,2633.0,2.6585]
[1723403412529,2.3472,2634.1,2633.0,2.4916]
[1723403412688,2.65827,2633.3,2633.0,2.4916]
[1723403413189,2.65819,2633.4,2633.0,2.4916]
[1723403413540,2.65789,2633.7,2633.0,2.4916]
[1723403413831,2.65789,2633.7,2633.0,5.665174]
[1723403414002,2.65771,2633.9,2633.2,2.65835]
[1723403414522,2.65791,2633.7,2633.1,2.65845]
[1723403414743,2.65791,2633.7,2633.0,5.665104]
[1723403414942,2.65783,2633.8,2633.1,3.2249004]
[1723403415256,2.65814,2633.5,2633.0,2.4916]
[1723403415551,2.65827,2633.3,2633.0,2.4916]
[1723403415842,2.65827,2633.3,2632.6,5.65892]
[1723403416123,2.65827,2633.3,2632.7,2.4916]
[1723403416355,2.65865,2633.0,2632.7,2.4916]
[1723403416956,2.65865,2633.0,2632.5,0.38945106]
[1723403416957,9.6172,2633.4,2632.5,0.38945106]
[1723403417136,2.65876,2632.8,2632.5,0.38945106]
[1723403417439,2.65893,2632.7,2632.5,0.38945106]
[1723403418017,9.92851,2633.1,2632.5,0.38945106]
[1723403418321,2.65875,2632.9,2632.5,0.38945106]
[1723403418904,9.92851,2633.1,2632.5,3.04851106]
[1723403419133,9.92851,2633.1,2632.5,0.38945106]
[1723403419328,2.65866,2632.9,2632.5,0.38945106]
[1723403419674,9.92851,2633.1,2632.5,3.04850106]
[1723403419951,12.58706,2633.1,2632.5,3.04850106]
[1723403420355,2.65858,2633.0,2632.5,3.04850106]
[1723403420520,2.65867,2632.9,2632.5,0.38945106]
[1723403420719,9.92849,2633.1,2632.5,0.38945106]
[1723403421065,2.65858,2633.0,2632.5,0.38945106]
[1723403421235,2.65868,2632.9,2632.5,0.38945106]
[1723403421736,7.27,2633.1,2632.5,0.38945106]
[1723403422149,2.65896,2632.7,2632.5,0.38945106]
[1723403423281,5.31761,2632.8,2632.5,0.38945106]
[1723403423568,2.65887,2632.7,2632.5,0.38945106]
[1723403423771,2.65877,2632.8,2632.5,0.38945106]
[1723403423772,10.32408,2632.6,2632.5,0.38945106]
[1723403424461,7.66512,2632.6,2632.5,0.38945106]
[1723403424881,5.31792,2632.6,2632.5,0.38945106]
[1723403426430,2.65896,2632.6,2632.5,0.38945106]
[1723403427563,2.65894,2632.7,2632.5,0.38945106]
[1723403428542,2.65896,2632.6,2632.5,0.38945106]
[1723403428865,5.31789,2632.7,2632.5,0.38945106]
[1723403429159,5.31788,2632.7,2632.5,0.38945106]
[1723403429364,9.92848,2633.1,2632.5,2.68775106]
[1723403429365,2.65872,2632.9,2632.5,2.68775106]
[1723403429567,2.65872,2632.9,2632.5,3.22244717]
[1723403430082,2.65851,2633.1,2632.5,3.22244717]
[1723403430471,2.65837,2633.2,2632.6,2.73487191]
[1723403430784,2.6584,2633.2,2632.6,2.73485191]
[1723403430992,2.6584,2633.2,2632.7,0.59572991]
[1723403431358,2.65831,2633.3,2632.7,0.59572991]
[1723403431685,2.65846,2633.1,2632.7,0.59572991]
[1723403431886,0.05664803,2633.2,2632.7,2.65884]
[1723403432087,0.05648531,2633.0,2632.8,2.2983]
[1723403432291,2.6581,2633.5,2632.9,2.65866]
[1723403432458,2.6581,2633.5,2633.0,0.76916683]
[1723403433284,2.65831,2633.3,2633.0,0.76916683]
[1723403433471,2.65836,2633.2,2632.8,2.2983]
[1723403434265,2.65816,2633.4,2632.8,4.95705]
[1723403434463,5.31638,2633.4,2632.8,4.95705]
[1723403434768,2.65826,2633.3,2632.8,4.95705]
[1723403434946,2.65826,2633.3,2632.9,0.795705]
[1723403435650,2.65816,2633.4,2632.9,0.795705]
[1723403436454,5.3164,2633.4,2632.9,0.795705]
[1723403436945,2.65816,2633.4,2632.9,0.795705]
[1723403437159,2.65826,2633.3,2632.9,0.795705]
[1723403437606,7.27,2633.9,2633.1,2.2824]
[1723403437751,2.65741,2634.2,2633.6,4.94029]
[1723403437951,9.92726,2634.3,2633.7,2.73369366]
[1723403438201,2.65726,2634.3,2633.7,2.73369366]
[1723403438503,2.65719,2634.4,2633.6,4.94029]
[1723403438504,2.65719,2634.4,2633.8,2.73367958]
[1723403438798,7.27,2634.7,2633.9,2.63168712]
[1723403438966,7.27,2634.7,2634.3,2.2824]
[1723403439165,2.65675,2634.8,2634.3,2.2824]
[1723403440414,1.97515177,2636.0,2634.3,2.2824]
[1723403440588,2.65507,2636.5,2635.9,2.2824]
[1723403440948,2.6552,2636.4,2635.9,2.2824]
[1723403441066,2.65495,2636.6,2635.9,2.2824]
[1723403441254,2.4685,2637.1,2635.9,2.2824]
[1723403441255,2.65517,2636.4,2635.9,2.2824]
[1723403441457,2.4685,2637.1,2635.5,2.2824]
[1723403441697,2.65574,2635.8,2635.5,2.2824]
[1723403441899,0.265574,2635.7,2635.1,5.2824]
[1723403442098,2.65574,2635.8,2635.1,2.2824]
[1723403442402,0.04051688,2635.7,2635.1,2.2824]
[1723403442697,2.65574,2635.8,2635.1,5.01471883]
[1723403442892,0.04051688,2635.7,2635.1,5.01471883]
[1723403443100,2.65574,2635.8,2635.1,5.01471883]
[1723403443294,0.04051688,2635.7,2635.1,5.01471883]
[1723403443591,2.65574,2635.8,2635.1,5.01471883]
[1723403444019,2.69632131,2635.7,2635.1,5.01471883]
[1723403444566,2.96595344,2635.7,2635.1,5.01471883]
[1723403444791,0.31011344,2635.7,2635.1,7.67107883]
[1723403445101,0.04048131,2635.7,2635.3,2.65622]
[1723403445398,2.65557,2636.0,2635.3,2.65622]
[1723403445706,2.65564,2635.9,2635.3,2.65622]
[1723403445905,0.57169081,2635.8,2635.3,2.65622]
[1723403446066,0.04056981,2635.8,2635.6,2.65592]
[1723403446266,2.65531,2636.3,2635.6,2.65592]
[1723403446493,5.31063,2636.3,2635.6,2.65592]
[1723403446807,0.04164489,2636.2,2635.8,2.6557]
[1723403447097,9.92507,2636.5,2635.9,2.65563]
[1723403447305,5.4685,2636.8,2635.7,2.2794]
[1723403447306,2.69702231,2636.4,2635.7,2.2794]
[1723403447518,2.69702231,2636.4,2635.7,4.93522]
[1723403448107,0.04182231,2636.4,2636.3,4.93463]
[1723403448305,7.27,2636.8,2636.3,4.93463]
[1723403448512,0.04076964,2636.7,2636.4,2.6551]
[1723403448712,7.27,2637.2,2636.4,2.65506]
[1723403448713,2.65446,2637.1,2636.4,2.65506]
[1723403448896,0.04101305,2637.0,2636.4,2.65506]
[1723403449869,2.69556305,2637.0,2636.4,2.65506]
[1723403450065,2.69556305,2637.0,2636.3,2.2794]
[1723403450066,3.18963231,2636.9,2636.3,2.2794]
[1723403450284,2.65523,2636.4,2635.9,2.2794]
[1723403450496,0.04044502,2636.3,2636.1,2.65536]
[1723403450679,7.27,2636.7,2636.1,2.65536]
[1723403451023,0.04068849,2636.6,2636.1,5.31071]
[1723403451215,0.04068849,2636.6,2636.1,2.65535]
[1723403451506,0.04068849,2636.6,2636.2,2.65533]
[1723403451926,0.04068849,2636.6,2636.5,7.70936]
[1723403452206,5.30775,2637.7,2637.0,2.65452]
[1723403452437,5.30775,2637.7,2636.9,2.65455]
[1723403452438,2.65393,2637.6,2636.9,2.65455]
[1723403452589,0.04068322,2637.6,2637.0,2.3993]
[1723403452783,0.04068322,2637.6,2637.1,2.65441]
[1723403453123,0.03910862,2637.5,2637.1,2.65441]
[1723403453320,2.6688,2637.8,2637.1,2.65441]
[1723403453531,0.0392708,2637.7,2637.1,2.65441]
[1723403454328,0.0392708,2637.7,2637.0,2.3993]
[1723403454496,2.654,2637.6,2637.0,2.3993]
[1723403454704,2.69318972,2637.6,2637.0,2.3993]
[1723403455324,0.03918972,2637.6,2637.0,2.3993]
[1723403455637,0.03918972,2637.6,2637.1,2.65441]
[1723403456287,2.69311972,2637.6,2637.0,2.3993]
[1723403456620,0.03918972,2637.6,2637.0,2.3993]
[1723403456829,0.03918972,2637.6,2637.0,3.34342049]
[1723403457034,0.03918972,2637.6,2637.1,2.65442]
[1723403457845,0.03918972,2637.6,2637.1,2.65435]
[1723403459132,0.03918972,2637.6,2637.3,2.65416]
[1723403459338,0.015,2637.8,2637.3,2.65416]
[1723403459641,0.0388399,2637.5,2637.3,2.65416]
[1723403459802,0.015,2637.8,2637.3,2.65416]
[1723403460010,0.0387588,2637.4,2637.3,2.65416]
[1723403460213,0.015,2637.8,2637.3,5.84676855]
[1723403460413,0.0388341,2637.4,2637.3,3.19259855]
[1723403460596,0.015,2637.8,2637.3,3.19259855]
[1723403461138,0.015,2637.8,2637.5,2.65396]
[1723403461139,0.03907737,2637.7,2637.5,2.65396]
[1723403461320,0.015,2637.8,2637.3,2.72996761]
[1723403461632,0.03900836,2637.6,2637.3,2.72996761]
[1723403461791,0.03907737,2637.7,2637.3,2.72996761]
[1723403461997,0.03885104,2637.5,2637.4,5.05342]
[1723403462199,0.015,2637.8,2637.5,2.65402]
[1723403462621,0.0394893,2637.7,2637.5,2.65396]
[1723403462825,0.0394893,2637.7,2637.5,3.77854638]
[1723403463027,0.015,2637.8,2637.5,3.77854638]
[1723403463351,0.015,2637.8,2637.7,5.30764]
[1723403463501,0.015,2637.8,2637.7,5.38344437]
[1723403463701,0.015,2637.8,2637.7,8.38344437]
[1723403464015,0.015,2637.8,2637.7,10.13956645]
[1723403464208,0.015,2637.8,2637.7,10.06376208]
[1723403470245,0.015,2637.8,2637.7,15.19088208]
[1723403470398,0.015,2637.8,2637.7,15.74088208]
[1723403470603,0.015,2637.8,2637.7,15.19088208]
[1723403471910,0.015,2637.8,2637.7,12.53706208]
[1723403473806,0.015,2637.8,2637.7,4.75612208]
[1723403474114,2.2619,2637.7,2636.8,5.14655]
[1723403474314,2.2619,2637.7,2635.5,11.31401889]
[1723403474315,2.65429,2637.3,2636.6,2.65486]
[1723403474535,2.2619,2637.7,2636.6,2.65486]
[1723403474536,0.03841535,2637.6,2636.7,0.34132829]
[1723403474707,2.65396,2637.6,2636.7,0.265486]
[1723403474917,2.65419,2637.4,2636.8,2.65466]
[1723403475152,2.65433,2637.2,2636.9,0.2920146]
[1723403475325,2.65433,2637.2,2636.7,0.265486]
[1723403475659,0.03755217,2637.1,2636.7,0.265486]
[1723403475953,2.65417,2637.4,2636.7,0.265486]
[1723403475954,2.65417,2637.4,2636.7,2.920306]
[1723403476139,0.03754204,2637.0,2636.8,0.2920306]
[1723403476342,2.65417,2637.4,2636.8,0.2920306]
[1723403476544,0.03736152,2636.9,2636.8,2.9466806]
[1723403476863,2.65417,2637.4,2636.8,2.9466806]
[1723403477014,0.03736152,2636.9,2636.8,2.9466806]
[1723403477219,2.65417,2637.4,2636.8,2.9466806]
[1723403477440,0.03736152,2636.9,2636.8,2.9466806]
[1723403477753,2.29926152,2636.9,2635.8,2.65564]
[1723403478061,2.2619,2636.3,2635.5,2.65599]
[1723403478227,2.65544,2636.1,2635.6,0.265599]
[1723403478641,0.03662207,2636.0,2635.6,2.921519]
[1723403478957,2.6554,2636.2,2635.6,2.921519]
[1723403479255,0.03654088,2635.9,2635.7,0.2921519]
[1723403479440,2.2619,2636.3,2635.7,0.2921519]
[1723403479642,0.03645969,2635.8,2635.7,2.9479619]
[1723403479846,4.91716,2636.3,2635.7,2.9479619]
[1723403480072,4.91716,2636.3,2635.8,0.56038819]
[1723403480366,2.65498,2636.6,2636.0,2.65548]
[1723403480569,2.65498,2636.6,2635.2,0.1]
[1723403480570,2.2619,2635.3,2634.0,5.21492203]
[1723403480877,0.07586362,2635.2,2634.6,2.65693]